[Event "Titled Tuesday Blitz June 22 2021"]
[White "Mirzoev, Azer"]
[Black "Ronka, Erik"]
[WhiteFideId "13400304"]
[BlackFideId "505080"]
[WhiteElo "2525"]
[BlackElo "2264"]
[Result "1-0"]
[Round "11"]
[TimeControl "180+1"]
[Date "2021.06.22"]
[WhiteClock "0:00:07"]
[BlackClock "0:00:02"]

1. d4 {[%clk 0:03:00]}  g6 {[%clk 0:02:59]} 2. e4 {[%clk 0:02:59]}  Bg7 {[%clk 0:03:00]} 3. Nc3 {[%clk 0:02:59]}  c6 {[%clk 0:03:00]} 4. Be3 {[%clk 0:02:59]}  d5 {[%clk 0:03:00]} 5. f3 {[%clk 0:02:59]}  Qb6 {[%clk 0:03:01]} 6. a3 {[%clk 0:02:56]}  e5 {[%clk 0:02:58]} 7. Nge2 {[%clk 0:02:52]}  Ne7 {[%clk 0:02:53]} 8. exd5 {[%clk 0:02:46]}  Nf5 {[%clk 0:02:48]} 9. Bf2 {[%clk 0:02:39]}  exd4 {[%clk 0:02:48]} 10. dxc6 {[%clk 0:02:13]}  Nxc6 {[%clk 0:02:45]} 11. Nd5 {[%clk 0:02:09]}  Qa5+ {[%clk 0:02:44]} 12. Nb4 {[%clk 0:01:52]}  Nxb4 {[%clk 0:02:43]} 13. axb4 {[%clk 0:01:52]}  Qxb4+ {[%clk 0:02:43]} 14. Qd2 {[%clk 0:01:51]}  Qxb2 {[%clk 0:02:40]} 15. Rd1 {[%clk 0:01:47]}  O-O {[%clk 0:02:37]} 16. Ng3 {[%clk 0:01:41]}  Ne3 {[%clk 0:02:27]} 17. Bxe3 {[%clk 0:01:38]}  dxe3 {[%clk 0:02:27]} 18. Qxe3 {[%clk 0:01:38]}  Qxc2 {[%clk 0:02:11]} 19. Be2 {[%clk 0:01:36]}  Qc3+ {[%clk 0:02:09]} 20. Qxc3 {[%clk 0:01:36]}  Bxc3+ {[%clk 0:02:09]} 21. Kf2 {[%clk 0:01:36]}  Be6 {[%clk 0:02:09]} 22. Ne4 {[%clk 0:01:35]}  Bg7 {[%clk 0:02:09]} 23. Nc5 {[%clk 0:01:33]}  Bc8 {[%clk 0:01:59]} 24. Bc4 {[%clk 0:01:30]}  b6 {[%clk 0:01:57]} 25. Ne4 {[%clk 0:01:23]}  Bb7 {[%clk 0:01:51]} 26. Nd6 {[%clk 0:01:22]}  Bc6 {[%clk 0:01:47]} 27. Rhe1 {[%clk 0:01:23]}  Bc3 {[%clk 0:01:28]} 28. Re7 {[%clk 0:01:17]}  Bb4 {[%clk 0:01:28]} 29. Rxf7 {[%clk 0:01:10]}  Rxf7 {[%clk 0:01:21]} 30. Nxf7 {[%clk 0:01:09]}  Kg7 {[%clk 0:01:18]} 31. Ng5 {[%clk 0:01:08]}  a5 {[%clk 0:01:06]} 32. h4 {[%clk 0:00:58]}  a4 {[%clk 0:01:03]} 33. Ne6+ {[%clk 0:00:49]}  Kf6 {[%clk 0:01:01]} 34. Nf4 {[%clk 0:00:48]}  a3 {[%clk 0:00:48]} 35. Ba2 {[%clk 0:00:47]}  Rc8 {[%clk 0:00:44]} 36. Kg3 {[%clk 0:00:26]}  Re8 {[%clk 0:00:17]} 37. Rb1 {[%clk 0:00:24]}  Bc5 {[%clk 0:00:17]} 38. Nd3 {[%clk 0:00:22]}  Re2 {[%clk 0:00:12]} 39. Bc4 {[%clk 0:00:20]}  Bd4 {[%clk 0:00:10]} 40. Nf4 {[%clk 0:00:12]}  a2 {[%clk 0:00:09]} 41. Rd1 {[%clk 0:00:10]}  Rc2 {[%clk 0:00:04]} 42. Bxa2 {[%clk 0:00:09]}  Be5 {[%clk 0:00:04]} 43. Bb1 {[%clk 0:00:08]}  Rc4 {[%clk 0:00:03]} 44. Be4 {[%clk 0:00:06]}  Bxe4 {[%clk 0:00:03]} 45. fxe4 {[%clk 0:00:06]}  Rc3+ {[%clk 0:00:03]} 46. Kg4 {[%clk 0:00:06]}  h5+ {[%clk 0:00:03]} 47. Nxh5+ {[%clk 0:00:06]}  gxh5+ {[%clk 0:00:03]} 48. Kxh5 {[%clk 0:00:07]}  b5 {[%clk 0:00:03]} 49. Rb1 {[%clk 0:00:06]}  Rc5 {[%clk 0:00:02]} 50. g4 {[%clk 0:00:07]} 1-0


[Site "https://www.chess.com"]

[Event "Titled Tuesday Blitz June 22 2021"]
[White "Morchiashvili, Bachana"]
[Black "Proudian, Armen"]
[WhiteFideId "13602535"]
[BlackFideId "2130734"]
[WhiteElo "2278"]
[BlackElo "2380"]
[Result "1/2-1/2"]
[Round "11"]
[TimeControl "180+1"]
[Date "2021.06.22"]
[WhiteClock "0:00:22"]
[BlackClock "0:00:19"]

1. d4 {[%clk 0:03:00]}  Nf6 {[%clk 0:02:59]} 2. Nf3 {[%clk 0:03:01]}  e6 {[%clk 0:02:59]} 3. e3 {[%clk 0:03:02]}  b6 {[%clk 0:02:59]} 4. Bd3 {[%clk 0:03:02]}  Bb7 {[%clk 0:02:59]} 5. O-O {[%clk 0:03:03]}  c5 {[%clk 0:03:00]} 6. c4 {[%clk 0:03:03]}  cxd4 {[%clk 0:02:58]} 7. exd4 {[%clk 0:03:04]}  Be7 {[%clk 0:02:56]} 8. Nc3 {[%clk 0:03:04]}  O-O {[%clk 0:02:56]} 9. d5 {[%clk 0:03:03]}  exd5 {[%clk 0:02:49]} 10. cxd5 {[%clk 0:03:02]}  Na6 {[%clk 0:02:47]} 11. Bg5 {[%clk 0:02:53]}  Nc5 {[%clk 0:02:32]} 12. d6 {[%clk 0:02:47]}  Bxd6 {[%clk 0:02:21]} 13. Bxh7+ {[%clk 0:02:44]}  Kxh7 {[%clk 0:02:20]} 14. Qxd6 {[%clk 0:02:45]}  Qb8 {[%clk 0:02:00]} 15. Bf4 {[%clk 0:02:32]}  Qxd6 {[%clk 0:01:58]} 16. Bxd6 {[%clk 0:02:33]}  Rfe8 {[%clk 0:01:59]} 17. Ne5 {[%clk 0:02:19]}  Nfe4 {[%clk 0:01:39]} 18. Nxf7 {[%clk 0:01:59]}  Nxc3 {[%clk 0:01:15]} 19. bxc3 {[%clk 0:01:57]}  Ne4 {[%clk 0:01:15]} 20. Bf4 {[%clk 0:01:41]}  Nxc3 {[%clk 0:01:06]} 21. Be3 {[%clk 0:01:34]}  Bd5 {[%clk 0:00:51]} 22. Nd6 {[%clk 0:01:32]}  Re6 {[%clk 0:00:49]} 23. Nf5 {[%clk 0:01:31]}  Rg6 {[%clk 0:00:45]} 24. f3 {[%clk 0:01:25]}  Nxa2 {[%clk 0:00:38]} 25. Ne7 {[%clk 0:01:21]}  Be6 {[%clk 0:00:36]} 26. Nxg6 {[%clk 0:01:20]}  Kxg6 {[%clk 0:00:37]} 27. Rfe1 {[%clk 0:01:14]}  Nb4 {[%clk 0:00:33]} 28. Bxb6 {[%clk 0:00:51]}  Nc2 {[%clk 0:00:31]} 29. Rxe6+ {[%clk 0:00:50]}  dxe6 {[%clk 0:00:30]} 30. Rxa7 {[%clk 0:00:51]}  Rxa7 {[%clk 0:00:30]} 31. Bxa7 {[%clk 0:00:52]}  Nb4 {[%clk 0:00:30]} 32. Kf2 {[%clk 0:00:52]}  Kf5 {[%clk 0:00:29]} 33. g4+ {[%clk 0:00:51]}  Ke5 {[%clk 0:00:26]} 34. h4 {[%clk 0:00:47]}  Nc6 {[%clk 0:00:25]} 35. Bc5 {[%clk 0:00:46]}  g6 {[%clk 0:00:25]} 36. Ke3 {[%clk 0:00:45]}  Kd5 {[%clk 0:00:24]} 37. Bf8 {[%clk 0:00:44]}  Ke5 {[%clk 0:00:24]} 38. Bg7+ {[%clk 0:00:42]}  Kd6 {[%clk 0:00:24]} 39. Ke4 {[%clk 0:00:41]}  Ke7 {[%clk 0:00:24]} 40. Kf4 {[%clk 0:00:40]}  Kf7 {[%clk 0:00:25]} 41. Bc3 {[%clk 0:00:40]}  Ne7 {[%clk 0:00:24]} 42. Kg5 {[%clk 0:00:39]}  Nd5 {[%clk 0:00:24]} 43. Be5 {[%clk 0:00:39]}  Ne3 {[%clk 0:00:22]} 44. Kh6 {[%clk 0:00:38]}  Nc4 {[%clk 0:00:21]} 45. Bf4 {[%clk 0:00:38]}  e5 {[%clk 0:00:19]} 46. Bc1 {[%clk 0:00:38]}  Kf6 {[%clk 0:00:18]} 47. Bg5+ {[%clk 0:00:34]}  Kf7 {[%clk 0:00:18]} 48. Bd8 {[%clk 0:00:33]}  Nd2 {[%clk 0:00:18]} 49. f4 {[%clk 0:00:21]}  exf4 {[%clk 0:00:18]} 50. Bg5 {[%clk 0:00:21]}  Nf3 {[%clk 0:00:17]} 51. Bxf4 {[%clk 0:00:21]}  Nxh4 {[%clk 0:00:17]} 52. Kg5 {[%clk 0:00:22]}  Ng2 {[%clk 0:00:17]} 53. Bd2 {[%clk 0:00:21]}  Kg7 {[%clk 0:00:17]} 54. Bb4 {[%clk 0:00:19]}  Ne3 {[%clk 0:00:15]} 55. Bc3+ {[%clk 0:00:19]}  Kf7 {[%clk 0:00:15]} 56. Bd2 {[%clk 0:00:18]}  Nxg4 {[%clk 0:00:16]} 57. Kxg4 {[%clk 0:00:18]}  Ke6 {[%clk 0:00:17]} 58. Bg5 {[%clk 0:00:18]}  Kd5 {[%clk 0:00:18]} 59. Bd2 {[%clk 0:00:18]}  Kc4 {[%clk 0:00:18]} 60. Kg5 {[%clk 0:00:19]}  Kd3 {[%clk 0:00:18]} 61. Bf4 {[%clk 0:00:20]}  Kc2 {[%clk 0:00:18]} 62. Bc7 {[%clk 0:00:21]}  Kb1 {[%clk 0:00:19]} 63. Kxg6 {[%clk 0:00:22]} 1/2-1/2


[Site "https://www.chess.com"]

[Event "Titled Tuesday Blitz June 22 2021"]
[White "Morefield, Jason"]
[Black "Petriashvili, Nikoloz"]
[WhiteFideId "30920825"]
[BlackFideId "13611216"]
[WhiteElo "2171"]
[BlackElo "2430"]
[Result "1-0"]
[Round "11"]
[TimeControl "180+1"]
[Date "2021.06.22"]
[WhiteClock "0:00:11"]
[BlackClock "0:00:12"]

1. d4 {[%clk 0:03:00]}  Nf6 {[%clk 0:03:00]} 2. c4 {[%clk 0:03:00]}  g6 {[%clk 0:03:00]} 3. Nf3 {[%clk 0:03:00]}  d5 {[%clk 0:03:01]} 4. Nc3 {[%clk 0:03:00]}  Bg7 {[%clk 0:03:01]} 5. Qb3 {[%clk 0:03:01]}  dxc4 {[%clk 0:03:01]} 6. Qxc4 {[%clk 0:03:01]}  O-O {[%clk 0:03:01]} 7. e4 {[%clk 0:03:02]}  a6 {[%clk 0:03:02]} 8. Be2 {[%clk 0:03:02]}  b5 {[%clk 0:03:02]} 9. Qb3 {[%clk 0:03:03]}  c5 {[%clk 0:03:03]} 10. dxc5 {[%clk 0:03:03]}  Bb7 {[%clk 0:03:03]} 11. e5 {[%clk 0:03:02]}  Nfd7 {[%clk 0:03:03]} 12. Be3 {[%clk 0:03:02]}  e6 {[%clk 0:02:59]} 13. O-O {[%clk 0:02:53]}  Qc7 {[%clk 0:02:59]} 14. Rad1 {[%clk 0:02:52]}  Nxc5 {[%clk 0:02:59]} 15. Qb4 {[%clk 0:02:51]}  Nbd7 {[%clk 0:02:56]} 16. Rc1 {[%clk 0:02:44]}  Rac8 {[%clk 0:02:52]} 17. Rfd1 {[%clk 0:02:44]}  Rfd8 {[%clk 0:02:50]} 18. a4 {[%clk 0:02:41]}  a5 {[%clk 0:02:45]} 19. Qxb5 {[%clk 0:02:12]}  Ba6 {[%clk 0:02:44]} 20. Rxd7 {[%clk 0:02:12]}  Rxd7 {[%clk 0:02:40]} 21. Qxc5 {[%clk 0:02:06]}  Qxc5 {[%clk 0:02:40]} 22. Bxc5 {[%clk 0:02:06]}  Rxc5 {[%clk 0:02:41]} 23. Bxa6 {[%clk 0:02:06]}  Bh6 {[%clk 0:02:37]} 24. Re1 {[%clk 0:01:55]}  Kg7 {[%clk 0:02:32]} 25. Bb5 {[%clk 0:01:54]}  Rd8 {[%clk 0:02:30]} 26. Kf1 {[%clk 0:01:53]}  Kf8 {[%clk 0:02:22]} 27. Ke2 {[%clk 0:01:52]}  Bg7 {[%clk 0:02:22]} 28. Rd1 {[%clk 0:01:40]}  Rxd1 {[%clk 0:02:20]} 29. Kxd1 {[%clk 0:01:41]}  Bxe5 {[%clk 0:02:19]} 30. Nxe5 {[%clk 0:01:40]}  Rxe5 {[%clk 0:02:20]} 31. f4 {[%clk 0:01:38]}  Rh5 {[%clk 0:02:20]} 32. h3 {[%clk 0:01:38]}  Rh4 {[%clk 0:02:11]} 33. Ne2 {[%clk 0:01:37]}  h6 {[%clk 0:02:12]} 34. Kd2 {[%clk 0:01:34]}  Ke7 {[%clk 0:02:12]} 35. Ke3 {[%clk 0:01:31]}  g5 {[%clk 0:02:12]} 36. fxg5 {[%clk 0:01:26]}  hxg5 {[%clk 0:02:13]} 37. Nd4 {[%clk 0:01:27]}  Kd6 {[%clk 0:02:09]} 38. Nc6 {[%clk 0:01:22]}  Kc5 {[%clk 0:01:56]} 39. Nxa5 {[%clk 0:01:20]}  Rb4 {[%clk 0:01:56]} 40. b3 {[%clk 0:01:18]}  f5 {[%clk 0:01:52]} 41. Kd2 {[%clk 0:01:01]}  g4 {[%clk 0:01:47]} 42. hxg4 {[%clk 0:00:56]}  Rxg4 {[%clk 0:01:46]} 43. Bf1 {[%clk 0:00:56]}  Rf4 {[%clk 0:01:10]} 44. Ke1 {[%clk 0:00:47]}  Kb4 {[%clk 0:01:08]} 45. Nc6+ {[%clk 0:00:46]}  Kxb3 {[%clk 0:01:05]} 46. a5 {[%clk 0:00:45]}  Ra4 {[%clk 0:00:52]} 47. a6 {[%clk 0:00:45]}  Kc3 {[%clk 0:00:39]} 48. a7 {[%clk 0:00:41]}  f4 {[%clk 0:00:32]} 49. Kf2 {[%clk 0:00:35]}  e5 {[%clk 0:00:30]} 50. Bb5 {[%clk 0:00:32]}  Ra2+ {[%clk 0:00:30]} 51. Kf3 {[%clk 0:00:32]}  Ra1 {[%clk 0:00:26]} 52. Ke4 {[%clk 0:00:25]}  Kd2 {[%clk 0:00:26]} 53. Kxe5 {[%clk 0:00:24]}  Ke3 {[%clk 0:00:26]} 54. Kf5 {[%clk 0:00:16]}  Ra2 {[%clk 0:00:22]} 55. Bc4 {[%clk 0:00:13]}  Ra1 {[%clk 0:00:16]} 56. Bd5 {[%clk 0:00:13]}  Ra4 {[%clk 0:00:13]} 57. Bf3 {[%clk 0:00:12]}  Ra6 {[%clk 0:00:12]} 58. Ke6 {[%clk 0:00:11]} 1-0


[Site "https://www.chess.com"]

[Event "Titled Tuesday Blitz June 22 2021"]
[White "Moroni, Luca Jr"]
[Black "Kamsky, Gata"]
[WhiteFideId "865834"]
[BlackFideId "2000024"]
[WhiteElo "2491"]
[BlackElo "2644"]
[Result "0-1"]
[Round "11"]
[TimeControl "180+1"]
[Date "2021.06.22"]
[WhiteClock "0:00:07"]
[BlackClock "0:00:30"]

1. d4 {[%clk 0:03:00]}  Nf6 {[%clk 0:02:59]} 2. c4 {[%clk 0:03:00]}  g6 {[%clk 0:02:58]} 3. Nc3 {[%clk 0:03:00]}  Bg7 {[%clk 0:02:55]} 4. e4 {[%clk 0:03:00]}  d6 {[%clk 0:02:55]} 5. Bd3 {[%clk 0:03:00]}  c6 {[%clk 0:02:47]} 6. Nge2 {[%clk 0:02:59]}  a6 {[%clk 0:02:47]} 7. a4 {[%clk 0:02:56]}  a5 {[%clk 0:02:46]} 8. O-O {[%clk 0:02:55]}  e5 {[%clk 0:02:46]} 9. d5 {[%clk 0:02:47]}  O-O {[%clk 0:02:44]} 10. f3 {[%clk 0:02:44]}  Na6 {[%clk 0:02:41]} 11. Be3 {[%clk 0:02:43]}  Nd7 {[%clk 0:02:39]} 12. Qd2 {[%clk 0:02:39]}  Ndc5 {[%clk 0:02:38]} 13. Rae1 {[%clk 0:02:35]}  Nxd3 {[%clk 0:02:35]} 14. Qxd3 {[%clk 0:02:34]}  Nb4 {[%clk 0:02:23]} 15. Qd2 {[%clk 0:02:33]}  cxd5 {[%clk 0:02:24]} 16. Nxd5 {[%clk 0:02:28]}  Nxd5 {[%clk 0:02:22]} 17. Qxd5 {[%clk 0:02:21]}  Be6 {[%clk 0:02:21]} 18. Qd3 {[%clk 0:02:20]}  f5 {[%clk 0:02:20]} 19. Nc3 {[%clk 0:02:20]}  Rc8 {[%clk 0:02:15]} 20. b3 {[%clk 0:02:19]}  Rf7 {[%clk 0:02:11]} 21. Rd1 {[%clk 0:02:17]}  Bf8 {[%clk 0:02:07]} 22. Nb5 {[%clk 0:02:05]}  f4 {[%clk 0:02:05]} 23. Bf2 {[%clk 0:02:03]}  Rd7 {[%clk 0:02:03]} 24. Rd2 {[%clk 0:01:47]}  g5 {[%clk 0:02:03]} 25. Rfd1 {[%clk 0:01:47]}  g4 {[%clk 0:02:02]} 26. Kh1 {[%clk 0:01:37]}  Qg5 {[%clk 0:01:59]} 27. Qe2 {[%clk 0:01:30]}  g3 {[%clk 0:01:44]} 28. Bg1 {[%clk 0:01:30]}  gxh2 {[%clk 0:01:43]} 29. Bf2 {[%clk 0:01:28]}  Rg7 {[%clk 0:01:35]} 30. Qf1 {[%clk 0:01:15]}  h5 {[%clk 0:01:25]} 31. Nxd6 {[%clk 0:01:14]}  Bxd6 {[%clk 0:01:10]} 32. Rxd6 {[%clk 0:01:15]}  Re8 {[%clk 0:01:06]} 33. Bb6 {[%clk 0:01:05]}  h4 {[%clk 0:01:04]} 34. Rd8 {[%clk 0:01:05]}  Rxd8 {[%clk 0:01:03]} 35. Bxd8 {[%clk 0:00:54]}  Qg3 {[%clk 0:00:55]} 36. Bf6 {[%clk 0:00:52]}  Rg6 {[%clk 0:00:55]} 37. Rd8+ {[%clk 0:00:25]}  Kf7 {[%clk 0:00:53]} 38. Bxh4 {[%clk 0:00:25]}  Qxh4 {[%clk 0:00:50]} 39. Qd1 {[%clk 0:00:26]}  Qf2 {[%clk 0:00:39]} 40. Rd7+ {[%clk 0:00:21]}  Kf6 {[%clk 0:00:38]} 41. Rd2 {[%clk 0:00:21]}  Qg1+ {[%clk 0:00:37]} 42. Qxg1 {[%clk 0:00:21]}  hxg1=Q+ {[%clk 0:00:37]} 43. Kxg1 {[%clk 0:00:21]}  Ke7 {[%clk 0:00:37]} 44. Kf2 {[%clk 0:00:22]}  b6 {[%clk 0:00:36]} 45. Rd1 {[%clk 0:00:22]}  Rh6 {[%clk 0:00:36]} 46. Kg1 {[%clk 0:00:22]}  Rh8 {[%clk 0:00:35]} 47. Kf2 {[%clk 0:00:22]}  Rd8 {[%clk 0:00:35]} 48. Rb1 {[%clk 0:00:22]}  Rd2+ {[%clk 0:00:34]} 49. Kg1 {[%clk 0:00:21]}  Kd6 {[%clk 0:00:35]} 50. b4 {[%clk 0:00:21]}  Bxc4 {[%clk 0:00:33]} 51. bxa5 {[%clk 0:00:21]}  bxa5 {[%clk 0:00:33]} 52. Rb6+ {[%clk 0:00:21]}  Kc5 {[%clk 0:00:33]} 53. Rb8 {[%clk 0:00:21]}  Ra2 {[%clk 0:00:32]} 54. Re8 {[%clk 0:00:20]}  Kd4 {[%clk 0:00:33]} 55. Rd8+ {[%clk 0:00:20]}  Ke3 {[%clk 0:00:33]} 56. Re8 {[%clk 0:00:20]}  Rxa4 {[%clk 0:00:33]} 57. Rxe5 {[%clk 0:00:20]}  Ra1+ {[%clk 0:00:32]} 58. Kh2 {[%clk 0:00:20]}  a4 {[%clk 0:00:32]} 59. Ra5 {[%clk 0:00:20]}  a3 {[%clk 0:00:32]} 60. e5 {[%clk 0:00:20]}  a2 {[%clk 0:00:32]} 61. e6 {[%clk 0:00:20]}  Kd4 {[%clk 0:00:32]} 62. g3 {[%clk 0:00:06]}  fxg3+ {[%clk 0:00:31]} 63. Kxg3 {[%clk 0:00:07]}  Rg1+ {[%clk 0:00:30]} 64. Kf2 {[%clk 0:00:07]}  a1=Q {[%clk 0:00:30]} 0-1


[Site "https://www.chess.com"]

[Event "Titled Tuesday Blitz June 22 2021"]
[White "Mortazavi, Ali"]
[Black "Smirnov, Pavel"]
[WhiteFideId "401323"]
[BlackFideId "4123425"]
[WhiteElo "2339"]
[BlackElo "2584"]
[Result "0-1"]
[Round "11"]
[TimeControl "180+1"]
[Date "2021.06.22"]
[WhiteClock "0:00:07"]
[BlackClock "0:00:48"]

1. Nf3 {[%clk 0:03:00]}  Nf6 {[%clk 0:02:59]} 2. g3 {[%clk 0:03:00]}  g6 {[%clk 0:03:00]} 3. Bg2 {[%clk 0:03:01]}  Bg7 {[%clk 0:03:01]} 4. O-O {[%clk 0:03:02]}  O-O {[%clk 0:03:02]} 5. d3 {[%clk 0:03:02]}  d6 {[%clk 0:03:02]} 6. e4 {[%clk 0:03:03]}  e5 {[%clk 0:03:02]} 7. Nc3 {[%clk 0:03:02]}  Nc6 {[%clk 0:03:03]} 8. a4 {[%clk 0:03:03]}  h6 {[%clk 0:03:01]} 9. a5 {[%clk 0:03:03]}  a6 {[%clk 0:03:00]} 10. h3 {[%clk 0:03:02]}  Nd4 {[%clk 0:03:00]} 11. Nxd4 {[%clk 0:02:48]}  exd4 {[%clk 0:03:01]} 12. Nb1 {[%clk 0:02:43]}  c5 {[%clk 0:03:01]} 13. Nd2 {[%clk 0:02:42]}  Nd7 {[%clk 0:02:59]} 14. f4 {[%clk 0:02:39]}  b5 {[%clk 0:03:00]} 15. axb6 {[%clk 0:02:14]}  Nxb6 {[%clk 0:02:59]} 16. b3 {[%clk 0:02:13]}  a5 {[%clk 0:02:56]} 17. f5 {[%clk 0:02:01]}  gxf5 {[%clk 0:02:42]} 18. exf5 {[%clk 0:02:00]}  d5 {[%clk 0:02:43]} 19. g4 {[%clk 0:01:40]}  Qd6 {[%clk 0:02:24]} 20. Qe1 {[%clk 0:01:27]}  a4 {[%clk 0:02:23]} 21. bxa4 {[%clk 0:01:26]}  Rxa4 {[%clk 0:02:18]} 22. Rxa4 {[%clk 0:01:26]}  Nxa4 {[%clk 0:02:19]} 23. Qf2 {[%clk 0:01:20]}  Nc3 {[%clk 0:02:01]} 24. f6 {[%clk 0:01:18]}  Bxf6 {[%clk 0:02:01]} 25. Qxf6 {[%clk 0:01:09]}  Ne2+ {[%clk 0:01:45]} 26. Kh1 {[%clk 0:01:09]}  Ng3+ {[%clk 0:01:40]} 27. Kg1 {[%clk 0:01:10]}  Ne2+ {[%clk 0:01:41]} 28. Kh1 {[%clk 0:01:10]}  Qxf6 {[%clk 0:01:42]} 29. Rxf6 {[%clk 0:01:10]}  Nxc1 {[%clk 0:01:42]} 30. Bxd5 {[%clk 0:01:05]}  Kg7 {[%clk 0:01:39]} 31. Ne4 {[%clk 0:01:04]}  Ne2 {[%clk 0:01:37]} 32. Rd6 {[%clk 0:00:51]}  Nf4 {[%clk 0:01:30]} 33. Bc6 {[%clk 0:00:48]}  Nxh3 {[%clk 0:01:26]} 34. Nf6 {[%clk 0:00:36]}  Nf2+ {[%clk 0:01:23]} 35. Kg2 {[%clk 0:00:36]}  Nxg4 {[%clk 0:01:24]} 36. Nh5+ {[%clk 0:00:36]}  Kh8 {[%clk 0:01:23]} 37. Bf3 {[%clk 0:00:32]}  Ne3+ {[%clk 0:01:22]} 38. Kf2 {[%clk 0:00:32]}  Nf5 {[%clk 0:01:23]} 39. Rc6 {[%clk 0:00:27]}  Be6 {[%clk 0:01:24]} 40. Rxc5 {[%clk 0:00:27]}  Rc8 {[%clk 0:01:18]} 41. Rxc8+ {[%clk 0:00:25]}  Bxc8 {[%clk 0:01:19]} 42. Be4 {[%clk 0:00:21]}  Ne3 {[%clk 0:01:18]} 43. Nf6 {[%clk 0:00:15]}  Nxc2 {[%clk 0:01:15]} 44. Kf3 {[%clk 0:00:15]}  Kg7 {[%clk 0:01:12]} 45. Ne8+ {[%clk 0:00:15]}  Kf8 {[%clk 0:01:13]} 46. Nf6 {[%clk 0:00:16]}  Be6 {[%clk 0:01:12]} 47. Kf4 {[%clk 0:00:16]}  Ne3 {[%clk 0:00:55]} 48. Ke5 {[%clk 0:00:12]}  Ng4+ {[%clk 0:00:55]} 49. Nxg4 {[%clk 0:00:13]}  Bxg4 {[%clk 0:00:56]} 50. Kxd4 {[%clk 0:00:14]}  Ke7 {[%clk 0:00:54]} 51. Ke5 {[%clk 0:00:15]}  h5 {[%clk 0:00:53]} 52. d4 {[%clk 0:00:12]}  f6+ {[%clk 0:00:54]} 53. Kf4 {[%clk 0:00:12]}  Kd6 {[%clk 0:00:55]} 54. Bg2 {[%clk 0:00:09]}  Be6 {[%clk 0:00:48]} 55. Bf3 {[%clk 0:00:09]}  h4 {[%clk 0:00:47]} 56. Bh1 {[%clk 0:00:08]}  Bd5 {[%clk 0:00:45]} 57. Bxd5 {[%clk 0:00:06]}  Kxd5 {[%clk 0:00:46]} 58. Kg4 {[%clk 0:00:07]}  Kxd4 {[%clk 0:00:47]} 59. Kxh4 {[%clk 0:00:08]}  f5 {[%clk 0:00:46]} 60. Kg3 {[%clk 0:00:08]}  Ke3 {[%clk 0:00:47]} 61. Kg2 {[%clk 0:00:07]}  f4 {[%clk 0:00:47]} 62. Kg1 {[%clk 0:00:07]}  Ke2 {[%clk 0:00:47]} 63. Kh2 {[%clk 0:00:07]}  f3 {[%clk 0:00:48]} 0-1


[Site "https://www.chess.com"]

[Event "Titled Tuesday Blitz June 22 2021"]
[White "Nguyen Hong Nhung"]
[Black "Kalashian, David"]
[WhiteFideId "12412201"]
[BlackFideId "13302418"]
[WhiteElo "1661"]
[BlackElo "2490"]
[Result "0-1"]
[Round "11"]
[TimeControl "180+1"]
[Date "2021.06.22"]
[WhiteClock "0:00:12"]
[BlackClock "0:01:01"]

1. e4 {[%clk 0:03:00]}  c6 {[%clk 0:02:58]} 2. d4 {[%clk 0:03:00]}  g6 {[%clk 0:02:59]} 3. Nc3 {[%clk 0:03:00]}  Bg7 {[%clk 0:02:57]} 4. Be3 {[%clk 0:02:55]}  d6 {[%clk 0:02:56]} 5. Qd2 {[%clk 0:02:55]}  Nd7 {[%clk 0:02:55]} 6. O-O-O {[%clk 0:02:55]}  b5 {[%clk 0:02:51]} 7. h4 {[%clk 0:02:53]}  h5 {[%clk 0:02:49]} 8. Nh3 {[%clk 0:02:51]}  Nb6 {[%clk 0:02:40]} 9. Nf4 {[%clk 0:02:25]}  a5 {[%clk 0:02:32]} 10. f3 {[%clk 0:02:23]}  b4 {[%clk 0:02:23]} 11. Nb1 {[%clk 0:02:23]}  Nf6 {[%clk 0:02:22]} 12. e5 {[%clk 0:02:08]}  Nfd5 {[%clk 0:02:11]} 13. Nxd5 {[%clk 0:02:01]}  Nxd5 {[%clk 0:02:08]} 14. f4 {[%clk 0:01:45]}  Bg4 {[%clk 0:01:48]} 15. Be2 {[%clk 0:01:43]}  Bxe2 {[%clk 0:01:46]} 16. Qxe2 {[%clk 0:01:44]}  e6 {[%clk 0:01:45]} 17. Nd2 {[%clk 0:01:38]}  Nxe3 {[%clk 0:01:31]} 18. Qxe3 {[%clk 0:01:39]}  d5 {[%clk 0:01:32]} 19. Nb3 {[%clk 0:01:36]}  Bf8 {[%clk 0:01:32]} 20. Qe2 {[%clk 0:01:16]}  a4 {[%clk 0:01:27]} 21. Nc5 {[%clk 0:01:15]}  Bxc5 {[%clk 0:01:26]} 22. dxc5 {[%clk 0:01:16]}  Qa5 {[%clk 0:01:25]} 23. Qe3 {[%clk 0:01:01]}  Ke7 {[%clk 0:01:23]} 24. f5 {[%clk 0:00:56]}  gxf5 {[%clk 0:01:19]} 25. Qg5+ {[%clk 0:00:55]}  Ke8 {[%clk 0:01:16]} 26. Qg7 {[%clk 0:00:49]}  Rf8 {[%clk 0:01:15]} 27. Qg5 {[%clk 0:00:34]}  b3 {[%clk 0:01:12]} 28. a3 {[%clk 0:00:26]}  bxc2 {[%clk 0:01:08]} 29. Kxc2 {[%clk 0:00:25]}  Qxc5+ {[%clk 0:01:08]} 30. Kb1 {[%clk 0:00:26]}  Rb8 {[%clk 0:01:07]} 31. Rh3 {[%clk 0:00:24]}  Kd7 {[%clk 0:01:03]} 32. Qxh5 {[%clk 0:00:23]}  Qf2 {[%clk 0:01:01]} 33. b3 {[%clk 0:00:17]}  axb3 {[%clk 0:01:01]} 34. Qf3 {[%clk 0:00:12]}  Qc2+ {[%clk 0:01:00]} 35. Ka1 {[%clk 0:00:12]}  Qa2# {[%clk 0:01:01]} 0-1


[Site "https://www.chess.com"]